bitfinex/quotes_BTCUSD_20220101
["timestamp","ask_amount","ask_price","bid_price","bid_amount"]
[1641014808103,0.0002,47433.0,47411.0,1.35030131]
[1641014808104,0.00016459,47417.0,47412.0,1.11]
[1641014808307,0.0002,47433.0,47416.0,0.15987591]
[1641014808504,0.0002,47433.0,47419.0,1.128521]
[1641014808704,0.0002,47433.0,47416.0,0.12780531]
[1641014808903,0.0002,47433.0,47416.0,0.12659]
[1641014808904,0.00058425,47418.0,47416.0,0.12659]
[1641014809303,0.00056599,47417.0,47416.0,0.12659]
[1641014809709,0.00056599,47417.0,47416.0,0.94]
[1641014810005,0.00056599,47417.0,47416.0,0.1499]
[1641014810453,0.00056599,47417.0,47416.0,0.1498]
[1641014810656,0.00056599,47417.0,47416.0,0.1497]
[1641014811155,0.00917599,47417.0,47416.0,0.1496]
[1641014811655,0.00917599,47417.0,47416.0,0.1495]
[1641014811954,0.00917599,47417.0,47416.0,0.1494]
[1641014812358,0.00917599,47417.0,47416.0,0.1493]
[1641014813155,0.00917599,47417.0,47416.0,0.7593]
[1641014813356,0.00917599,47417.0,47416.0,1.02427634]
[1641014813555,0.00917599,47417.0,47416.0,0.41551021]
[1641014813757,0.00933905,47417.0,47416.0,0.41551021]
[1641014813955,0.00933905,47417.0,47416.0,0.15053387]
[1641014814208,0.00933905,47417.0,47416.0,0.17004972]
[1641014814399,0.00933905,47417.0,47416.0,2.22494763]
[1641014815200,0.00933905,47417.0,47416.0,2.24346879]
[1641014815401,0.00933905,47417.0,47416.0,2.22395294]
[1641014816203,0.00933905,47417.0,47416.0,2.24539945]
[1641014816402,0.00988636,47418.0,47416.0,2.71687829]
[1641014816603,0.0001,47420.0,47419.0,0.0002]
[1641014816804,0.0003,47422.0,47419.0,0.20531819]
[1641014817002,0.00644877,47427.0,47421.0,0.10127951]
[1641014817203,0.00024598,47426.0,47425.0,1.2593]
[1641014817404,0.00024598,47426.0,47425.0,0.1493]
[1641014817609,0.00877432,47426.0,47425.0,0.15]
[1641014818648,0.01238432,47426.0,47425.0,0.15]
[1641014819849,0.22238432,47426.0,47425.0,0.15]
[1641014822796,0.03383455,47425.0,47424.0,0.01840982]
[1641014823089,0.75992445,47425.0,47424.0,0.01840982]
[1641014823589,0.33777907,47425.0,47424.0,0.16840982]
[1641014824188,0.33793377,47425.0,47424.0,0.16840982]
[1641014824590,0.70269101,47425.0,47424.0,0.15]
[1641014824788,0.33793377,47425.0,47424.0,0.14649212]
[1641014826764,0.38793377,47425.0,47424.0,0.14649212]
[1641014826963,0.38793377,47425.0,47419.0,0.00998344]
[1641014826964,0.43793377,47425.0,47419.0,0.00998344]
[1641014827165,0.49087342,47422.0,47419.0,0.00998344]
[1641014827365,0.337633,47421.0,47419.0,0.00998344]
[1641014827564,0.33770604,47421.0,47419.0,0.00998344]
[1641014828067,0.33770604,47421.0,47420.0,0.15]
[1641014828568,0.0001547,47425.0,47421.0,1.12174974]
[1641014828767,0.0001547,47425.0,47424.0,0.1512893]
[1641014828966,0.0001547,47425.0,47424.0,0.4771453]
[1641014829208,0.00022773,47425.0,47424.0,0.4771453]
[1641014829400,0.00022773,47425.0,47424.0,0.79895982]
[1641014829800,0.0003,47428.0,47426.0,1.01]
[1641014830002,0.0003,47428.0,47427.0,0.39911963]
[1641014830300,0.0003,47428.0,47427.0,0.325834]
[1641014830704,0.00891,47428.0,47427.0,0.325834]
[1641014831302,0.00891,47428.0,47427.0,0.49671475]
[1641014831503,0.00891,47428.0,47427.0,0.77115483]
[1641014832504,0.0001,47437.0,47429.0,0.0001]
[1641014832707,0.01060908,47444.0,47443.0,0.98493275]
[1641014832955,0.0004,47454.0,47449.0,0.00121759]
[1641014833150,0.0004,47454.0,47450.0,0.325644]
[1641014833353,0.0004,47454.0,47451.0,0.45702954]
[1641014833550,0.0004,47454.0,47451.0,0.60702954]
[1641014833849,0.0004,47454.0,47451.0,1.72702954]
[1641014833850,0.00250296,47452.0,47451.0,1.72702954]
[1641014834061,0.0002,47467.0,47454.0,0.325614]
[1641014834254,0.42706733,47482.0,47463.0,0.1]
[1641014834452,0.0001,47474.0,47464.0,1.31832132]
[1641014834753,0.00038341,47473.0,47472.0,0.27076358]
[1641014835059,0.42706733,47482.0,47472.0,0.17277435]
[1641014835060,0.42265074,47482.0,47472.0,0.17277435]
[1641014835251,0.0001,47476.0,47472.0,0.17257435]
[1641014835653,0.41809681,47482.0,47470.0,0.40345431]
[1641014835955,0.41809681,47482.0,47478.0,0.37076172]
[1641014836152,0.41809681,47482.0,47480.0,0.26934863]
[1641014836153,0.337633,47481.0,47480.0,0.26934863]
[1641014836351,0.337633,47481.0,47480.0,0.39609852]
[1641014836552,0.41809681,47482.0,47478.0,0.37076172]
[1641014836800,0.0001,47476.0,47473.0,0.00014607]
[1641014837003,0.33737922,47475.0,47473.0,0.00014607]
[1641014837200,0.33755,47480.0,47478.0,5.66242078]
[1641014837400,0.41809681,47482.0,47479.0,0.15]
[1641014837600,0.41809681,47482.0,47481.0,0.10156637]
[1641014838001,0.41809681,47482.0,47481.0,0.10136637]
[1641014838302,0.0001,47481.0,47478.0,5.68333738]
[1641014838506,0.0001,47481.0,47479.0,0.0190907]
[1641014838808,0.41319681,47482.0,47479.0,0.0189907]
[1641014839200,0.41319681,47482.0,47479.0,0.0188907]
[1641014839400,0.41319681,47482.0,47478.0,5.68319035]
[1641014839601,0.0001,47480.0,47478.0,5.68319035]
[1641014840443,0.0001,47480.0,47478.0,5.70263227]
[1641014840647,0.0001,47480.0,47478.0,5.6817627]
[1641014841245,0.0001,47480.0,47479.0,0.50935817]
[1641014841446,0.0001,47480.0,47479.0,0.62861817]
[1641014842050,0.30453275,47482.0,47479.0,0.62861817]
[1641014842248,0.30453275,47482.0,47479.0,0.6273595]
[1641014842449,0.00245308,47496.0,47479.0,0.64538384]
[1641014842647,0.00450021,47482.0,47479.0,0.31487815]
[1641014842849,0.00450021,47482.0,47479.0,0.04817434]
[1641014843047,0.00450021,47482.0,47481.0,0.1497]
[1641014843248,0.00450021,47482.0,47481.0,0.48725]
[1641014843551,0.0002,47485.0,47482.0,1.1144]
[1641014843850,0.0002,47485.0,47484.0,0.1497]
[1641014844192,0.00027303,47485.0,47484.0,0.1497]
[1641014844588,9.10136164,47488.0,47485.0,0.76]
[1641014844787,9.10136164,47488.0,47483.0,0.4410685]
[1641014844988,9.10136164,47488.0,47483.0,0.43985052]
[1641014845389,9.10136164,47488.0,47487.0,0.1497]
[1641014845589,9.10136164,47488.0,47487.0,0.43597626]
[1641014846388,9.10136164,47488.0,47487.0,0.45760412]
[1641014846590,9.10136164,47488.0,47487.0,0.30790412]
[1641014847291,9.10136164,47488.0,47487.0,0.28627626]
[1641014847491,9.10136164,47488.0,47487.0,0.30569414]
[1641014847693,9.10136164,47488.0,47487.0,1.56539414]
[1641014847694,4.40547709,47488.0,47487.0,1.56539414]
[1641014847957,4.40547709,47488.0,47487.0,0.80086788]
[1641014848156,4.40547709,47488.0,47487.0,0.65116788]
[1641014848556,4.40547709,47488.0,47487.0,0.65247191]
[1641014848759,4.41408709,47488.0,47487.0,0.65247191]
[1641014849157,4.41408709,47488.0,47487.0,0.80217191]
[1641014849558,4.41408709,47488.0,47487.0,0.80287294]
[1641014849959,4.75163709,47488.0,47487.0,0.65317294]
[1641014850161,4.74663709,47488.0,47487.0,0.65317294]
[1641014850559,4.74663709,47488.0,47487.0,0.67484209]
[1641014850761,4.74663709,47488.0,47487.0,0.65341915]
[1641014850962,4.74663709,47488.0,47487.0,0.80067391]
[1641014851165,4.79930209,47488.0,47487.0,0.80067391]
[1641014851562,4.79930209,47488.0,47487.0,0.81881701]
[1641014851808,4.79877558,47488.0,47487.0,0.81881701]
[1641014852106,4.79877558,47488.0,47487.0,0.82007212]
[1641014852107,4.40856058,47488.0,47487.0,0.82007212]
[1641014852502,4.40856058,47488.0,47487.0,0.83941381]
[1641014852702,4.74611058,47488.0,47487.0,0.79960156]
[1641014853303,5.01454858,47488.0,47487.0,0.79960156]
[1641014853506,5.38470402,47488.0,47487.0,0.81777755]
[1641014853703,5.38470402,47488.0,47487.0,0.79718075]
[1641014854103,0.14725476,47487.0,47481.0,0.00978186]
[1641014854306,0.42905642,47487.0,47481.0,0.00978186]
[1641014854504,0.052672,47484.0,47481.0,0.00978186]
[1641014854704,1.12,47481.0,47478.0,5.66232078]
[1641014855108,0.05,47482.0,47478.0,3.71682367]
[1641014855109,1.12,47479.0,47478.0,3.71682367]
[1641014855307,1.4212744,47479.0,47478.0,1.2589456]
[1641014855563,0.052696,47471.0,47454.0,0.0012753]
[1641014855760,0.158088,47472.0,47465.0,0.0141821]
[1641014855761,0.33755,47467.0,47465.0,0.0141821]
[1641014855964,0.33755,47466.0,47465.0,0.0141821]
[1641014856163,0.60937259,47466.0,47465.0,0.0141821]
[1641014856363,0.60937259,47466.0,47465.0,0.16413771]
[1641014856566,0.87334938,47466.0,47465.0,0.16413771]
[1641014857165,1.1657308,47466.0,47465.0,0.01443771]
[1641014857767,0.68262942,47466.0,47465.0,0.01443771]
[1641014857968,0.390248,47466.0,47465.0,0.16413771]
[1641014858165,0.390248,47466.0,47465.0,0.01443771]
[1641014858767,0.94253954,47466.0,47465.0,0.01443771]
[1641014858968,0.94951106,47466.0,47465.0,0.01443771]
[1641014859214,0.390248,47466.0,47465.0,0.01443771]
[1641014859808,0.68565997,47466.0,47465.0,0.01443771]
[1641014860208,0.398858,47466.0,47465.0,0.16413771]
[1641014860607,0.68073861,47466.0,47465.0,0.01443771]
[1641014861007,0.68073861,47466.0,47465.0,0.00025561]
[1641014861408,0.68073861,47466.0,47464.0,0.00027387]
[1641014861409,0.608858,47466.0,47464.0,0.00027387]
[1641014861618,0.33755,47465.0,47464.0,0.00027387]
[1641014862412,0.38755,47465.0,47464.0,0.00027387]
[1641014862612,0.53754999,47465.0,47464.0,0.00027387]
[1641014862812,1.12,47464.0,47463.0,0.01413462]
[1641014863064,1.85693772,47464.0,47463.0,0.01413462]
[1641014863566,0.05271238,47457.0,47452.0,0.0192833]
[1641014863765,0.105428,47455.0,47451.0,0.01]
[1641014863965,0.105428,47455.0,47453.0,0.00020083]
[1641014864165,0.33755,47454.0,47453.0,0.00020083]
[1641014864369,0.33755,47454.0,47453.0,0.14990083]
[1641014864768,0.052714,47455.0,47453.0,0.14990083]
[1641014864968,0.052714,47455.0,47453.0,0.00020083]
[1641014865171,0.052714,47455.0,47454.0,0.00018258]
[1641014865369,0.052714,47455.0,47452.0,0.00021909]
[1641014865570,0.45,47454.0,47449.0,0.34016597]
[1641014865769,0.10542554,47455.0,47444.0,0.29453646]
[1641014865969,0.10542554,47455.0,47443.0,0.01578668]
[1641014865970,0.252714,47455.0,47443.0,0.01578668]
[1641014866170,0.052714,47455.0,47445.0,0.00012781]
[1641014866572,0.052713,47450.0,47445.0,0.00012781]
[1641014866816,0.052713,47450.0,47445.0,0.4215321]
[1641014867219,0.052713,47450.0,47446.0,0.00010955]
[1641014868320,0.052713,47450.0,47446.0,0.56493736]
[1641014868521,0.00016041,47454.0,47449.0,1.13]
[1641014868719,0.00016041,47454.0,47450.0,0.9]
[1641014869319,0.00851696,47466.0,47453.0,1.2697]
[1641014869524,0.00851696,47466.0,47458.0,0.05644159]
[1641014869720,0.00365347,47467.0,47463.0,0.1497]
[1641014869923,0.00365347,47467.0,47466.0,0.1497]
[1641014870760,0.00861,47467.0,47466.0,0.1497]
[1641014870956,0.00861,47467.0,47466.0,2.60155576]
[1641014871156,0.00130247,47481.0,47466.0,2.45185576]
[1641014871555,0.0001,47475.0,47466.0,2.45185576]
[1641014871757,0.0001,47475.0,47471.0,0.0428638]
[1641014871956,0.00016432,47474.0,47469.0,0.29733554]
[1641014872162,0.00016432,47474.0,47473.0,0.0428638]
[1641014872356,0.0001,47475.0,47473.0,0.0428638]
[1641014872556,0.0001,47475.0,47474.0,0.0428638]
[1641014872958,0.00028258,47475.0,47474.0,0.0428638]
[1641014875304,0.00028258,47475.0,47473.0,0.01884817]
[1641014875509,0.052681,47474.0,47473.0,0.01884817]
[1641014875705,0.052681,47474.0,47473.0,0.03701672]
[1641014875706,0.05409945,47474.0,47473.0,0.03701672]
[1641014875905,0.39152845,47474.0,47473.0,0.01816855]
[1641014876306,0.69046698,47474.0,47473.0,0.01816855]
[1641014876505,0.79046698,47474.0,47473.0,0.01816855]
[1641014876709,0.69046698,47474.0,47473.0,0.01816855]
[1641014877007,0.69046698,47474.0,47468.0,0.00979632]
[1641014877205,0.052689,47471.0,47468.0,0.00979632]
[1641014877409,0.337429,47470.0,47468.0,0.00979632]
[1641014877606,0.33752029,47470.0,47468.0,0.00979632]
[1641014877808,7.303e-05,47469.0,47468.0,0.00979632]
[1641014878042,0.33750203,47469.0,47468.0,0.05266012]
[1641014878242,0.33750203,47469.0,47468.0,0.0428638]
[1641014880449,0.54750203,47469.0,47468.0,0.0428638]
[1641014883598,0.54750203,47469.0,47462.0,0.00481958]
[1641014883599,0.69328659,47465.0,47462.0,0.00481958]
[1641014883798,0.33869826,47463.0,47462.0,0.00481958]
[1641014883999,1.12,47462.0,47445.0,0.01886858]
[1641014884198,0.00126743,47456.0,47445.0,0.01886858]
[1641014884398,0.35585759,47465.0,47450.0,0.10296707]
[1641014884598,0.35585759,47465.0,47459.0,0.3693875]
[1641014884599,0.00123222,47464.0,47459.0,0.3693875]
[1641014884800,0.0202534,47462.0,47452.0,0.10264982]
[1641014884998,0.0729464,47462.0,47452.0,0.10264982]
[1641014885202,0.0202534,47462.0,47454.0,0.10252772]
[1641014885455,0.0202534,47462.0,47457.0,0.0012699]
[1641014885658,0.0202534,47462.0,47459.0,2.28589333]
[1641014885855,7.304e-05,47463.0,47459.0,2.58353316]
[1641014886156,7.304e-05,47463.0,47455.0,7.303e-05]
[1641014886157,0.30497966,47462.0,47455.0,7.303e-05]
[1641014886356,0.00129966,47459.0,47455.0,7.303e-05]
[1641014886558,0.337429,47458.0,47455.0,7.303e-05]
[1641014886755,0.337429,47457.0,47455.0,7.303e-05]
[1641014886954,0.337429,47457.0,47449.0,0.01]
[1641014886955,0.337429,47457.0,47456.0,0.0428638]
[1641014887858,0.35686605,47457.0,47456.0,0.28557509]
[1641014888256,0.40956805,47457.0,47456.0,0.29557509]
[1641014888456,0.40956805,47457.0,47456.0,0.0528638]
[1641014888857,0.43012497,47457.0,47456.0,0.0528638]
[1641014889056,0.41068792,47457.0,47456.0,0.0528638]
[1641014889711,0.80976404,47457.0,47456.0,0.01]
[1641014889911,0.50913874,47457.0,47456.0,0.01]
[1641014890910,0.52877137,47457.0,47456.0,0.01]
[1641014891109,1.12,47456.0,47450.0,9.129e-05]
[1641014891315,0.81976363,47457.0,47450.0,9.129e-05]
[1641014891316,1.17397796,47451.0,47450.0,9.129e-05]
[1641014891512,0.33868496,47451.0,47450.0,9.129e-05]
[1641014891708,0.337429,47450.0,47445.0,0.00943081]
[1641014891909,0.3387174,47446.0,47445.0,0.00943081]
[1641014892108,0.65368954,47446.0,47445.0,0.00943081]
[1641014892309,0.65368954,47446.0,47445.0,0.01]
[1641014892310,0.337429,47446.0,47445.0,0.01]
[1641014892710,0.01979489,47456.0,47445.0,0.01]
[1641014892965,0.01875607,47446.0,47445.0,0.01]
[1641014893363,0.28945525,47446.0,47445.0,0.01]
[1641014893563,0.60812818,47446.0,47445.0,0.01]
[1641014894863,0.62672742,47446.0,47445.0,0.01]
[1641014895863,0.90653756,47446.0,47445.0,0.01]
[1641014896063,1.63653756,47446.0,47445.0,0.005]
[1641014896264,1.26653756,47446.0,47445.0,0.005]
[1641014896464,0.00125935,47441.0,47431.0,0.001]
[1641014896710,0.25322662,47435.0,47431.0,0.001]
[1641014896906,0.337429,47434.0,47432.0,0.00032864]
[1641014897506,0.337429,47434.0,47433.0,0.01]
[1641014897907,0.442893,47434.0,47433.0,0.01031038]
[1641014898509,0.46360037,47434.0,47433.0,0.01031038]
[1641014898908,0.44410816,47434.0,47433.0,0.01031038]
[1641014899108,0.46562136,47434.0,47433.0,0.01031038]
[1641014899809,0.4644062,47434.0,47433.0,0.01031038]
[1641014900454,0.48590894,47434.0,47433.0,0.01031038]
[1641014900657,0.95665629,47434.0,47433.0,0.01031038]
[1641014900858,0.97485818,47434.0,47433.0,0.01031038]
[1641014901055,0.69384869,47434.0,47433.0,0.01031038]
[1641014901254,0.79384869,47434.0,47433.0,0.01031038]
[1641014901454,0.69384869,47434.0,47433.0,0.01031038]
[1641014901661,0.65414406,47434.0,47433.0,0.01031038]
[1641014901855,0.67255204,47434.0,47433.0,0.01031038]
[1641014902955,0.69414134,47434.0,47433.0,0.01031038]
[1641014903158,0.67573336,47434.0,47433.0,0.01031038]
[1641014903958,0.79548999,47434.0,47433.0,0.01031038]
[1641014904212,0.67390069,47434.0,47433.0,0.01031038]
[1641014904804,0.72390069,47434.0,47433.0,0.01031038]
[1641014905006,0.89402036,47434.0,47433.0,0.01031038]
[1641014905206,0.85414406,47434.0,47433.0,0.01031038]
[1641014905507,0.052744,47429.0,47428.0,0.00342644]
[1641014905706,0.39140845,47429.0,47428.0,0.00342644]
[1641014905909,0.44140845,47429.0,47428.0,0.00351773]
[1641014906106,0.59140845,47429.0,47428.0,0.00351773]
[1641014906306,0.59140845,47429.0,47428.0,0.04638153]
[1641014906506,0.39140845,47429.0,47428.0,0.05638153]
[1641014906905,0.41036325,47429.0,47428.0,0.05638153]
[1641014907707,0.41036325,47429.0,47428.0,0.01351773]
[1641014907968,0.52995882,47429.0,47428.0,0.01351773]
[1641014908167,0.61100402,47429.0,47428.0,0.01351773]
[1641014908367,0.85719111,47429.0,47428.0,0.01351773]
[1641014908768,1.05693754,47429.0,47428.0,0.05638153]
[1641014909067,1.05693754,47429.0,47428.0,0.01351773]
[1641014909068,1.36679273,47429.0,47428.0,0.01351773]
[1641014909269,0.052749,47426.0,47424.0,0.0567]
[1641014909467,0.337429,47425.0,47424.0,0.0567]
[1641014909670,0.7179789,47425.0,47424.0,0.0567]
[1641014909870,0.71893567,47425.0,47424.0,0.05677303]
[1641014910172,1.02996916,47425.0,47424.0,0.05677303]
[1641014910371,1.12996916,47425.0,47424.0,0.05677303]
[1641014910570,1.12996916,47425.0,47422.0,0.03090665]
[1641014910571,0.952752,47423.0,47422.0,0.03090665]
[1641014910769,0.73039999,47423.0,47422.0,0.03090665]
[1641014910968,0.92017929,47423.0,47421.0,0.001]
[1641014911172,0.92017929,47423.0,47401.0,0.04276515]
[1641014911173,1.12,47421.0,47411.0,0.01240943]
[1641014911368,0.3313946,47416.0,47411.0,0.01240943]
[1641014911567,0.61623316,47415.0,47411.0,0.01240943]
[1641014911802,0.337429,47412.0,47411.0,0.00740943]
[1641014912003,0.337429,47412.0,47411.0,0.00240943]
[1641014912201,0.337429,47412.0,47411.0,0.00264678]
[1641014912801,0.38863646,47412.0,47411.0,0.00264678]
[1641014913001,0.41022167,47412.0,47411.0,0.00264678]
[1641014913201,0.41022167,47412.0,47401.0,0.04276515]
[1641014913202,0.337429,47411.0,47401.0,0.03041193]
[1641014913401,0.052762,47403.0,47401.0,0.03041193]
[1641014913603,0.052762,47403.0,47402.0,0.00016432]
[1641014914202,0.390191,47403.0,47402.0,0.04302812]
[1641014914601,0.390191,47403.0,47402.0,0.00016432]
[1641014915302,0.4103081,47403.0,47401.0,0.01557625]
[1641014915752,0.4103081,47403.0,47402.0,0.0428638]
[1641014915953,0.42972482,47403.0,47402.0,0.0428638]
[1641014916155,0.40960772,47403.0,47402.0,0.0428638]
[1641014916857,0.01941672,47403.0,47402.0,0.0428638]
[1641014917054,0.03951128,47403.0,47402.0,0.0428638]
[1641014917256,0.02009456,47403.0,47402.0,0.3752928]
[1641014917858,0.02009456,47403.0,47402.0,0.63670816]
[1641014918256,0.00980155,47409.0,47402.0,0.62670816]
[1641014918456,0.00980155,47409.0,47402.0,0.59884436]
[1641014918657,0.00010954,47408.0,47402.0,0.59884436]
[1641014918861,0.00010954,47408.0,47407.0,0.0278638]
[1641014919058,0.00980155,47409.0,47407.0,0.0278638]
[1641014919322,0.00980155,47409.0,47400.0,0.33354134]
[1641014919922,0.06255455,47409.0,47400.0,0.33354134]
[1641014920125,0.00980155,47409.0,47400.0,0.32354134]
[1641014920331,0.00010987,47408.0,47400.0,0.32354134]
[1641014920524,0.00010987,47408.0,47400.0,0.31354134]
[1641014920725,9.129e-05,47407.0,47400.0,0.31354134]
[1641014920924,9.129e-05,47407.0,47405.0,0.12078329]
[1641014921123,0.00010987,47408.0,47394.0,0.0795532]
[1641014921124,0.33750203,47406.0,47394.0,0.0795532]
[1641014921334,0.33750203,47406.0,47399.0,0.12078329]
[1641014921526,0.33750203,47406.0,47404.0,0.12078329]
[1641014921722,0.33750203,47406.0,47405.0,0.12078329]
[1641014922125,0.35607378,47406.0,47405.0,0.12078329]
[1641014922524,0.40882978,47406.0,47405.0,0.12078329]
[1641014923464,0.35607378,47406.0,47405.0,0.12078329]
[1641014923663,0.3742977,47406.0,47405.0,0.12078329]
[1641014923863,0.35572595,47406.0,47405.0,0.12078329]
[1641014924064,0.37372723,47406.0,47405.0,0.12078329]
[1641014924264,0.35550331,47406.0,47395.0,0.00012781]
[1641014924467,0.9358,47436.0,47412.0,0.00124845]
[1641014924667,0.05274,47421.0,47412.0,0.00124845]
[1641014924866,1.0,47427.0,47412.0,0.00124845]
[1641014924867,0.5,47427.0,47412.0,0.00124845]
[1641014925265,0.0003469,47425.0,47417.0,0.31088806]
[1641014925562,0.24192589,47431.0,47422.0,0.15]
[1641014925563,0.00032864,47424.0,47422.0,0.15]
[1641014925763,0.00032864,47424.0,47423.0,0.15]
[1641014926063,0.3278515,47428.0,47423.0,0.15]
[1641014926263,0.3278515,47428.0,47427.0,0.55938049]
[1641014926562,0.0143163,47428.0,47427.0,0.55938049]
[1641014927210,0.0143163,47428.0,47417.0,0.3296543]
[1641014927211,0.17859164,47427.0,47421.0,0.00975325]
[1641014927410,0.10127427,47422.0,47421.0,0.00975325]
[1641014927607,0.10127427,47422.0,47410.0,0.20024631]
[1641014927608,0.2,47420.0,47410.0,0.20024631]
[1641014927810,0.00125832,47413.0,47410.0,0.20024631]
[1641014928007,0.43868732,47413.0,47410.0,0.20024631]
[1641014928213,0.70373373,47413.0,47412.0,0.15124845]
[1641014928410,0.80373373,47413.0,47412.0,0.16124845]
[1641014929008,0.85649473,47413.0,47412.0,0.16124845]
[1641014929410,0.85149473,47413.0,47412.0,0.16124845]
[1641014929607,0.58657612,47413.0,47412.0,0.16124845]
[1641014930657,0.58668248,47413.0,47412.0,0.16124845]
[1641014930859,0.92011656,47413.0,47412.0,0.16124845]
[1641014931055,0.92011656,47413.0,47412.0,0.01124845]
[1641014932062,1.13011656,47413.0,47412.0,0.01124845]
[1641014936304,1.13139879,47413.0,47412.0,0.01124845]
[1641014937210,1.13139879,47413.0,47391.0,0.001]
[1641014937211,0.8387184,47394.0,47391.0,0.001]
[1641014937410,0.052775,47393.0,47391.0,0.001]
[1641014937606,0.10555232,47393.0,47391.0,0.001]
[1641014938053,0.10555232,47393.0,47392.0,0.14911143]
[1641014938054,0.052775,47393.0,47392.0,0.14911143]
[1641014938253,0.390204,47393.0,47392.0,0.15411143]
[1641014938654,0.390204,47393.0,47392.0,0.60400243]
[1641014938856,0.05398407,47401.0,47394.0,0.55380961]
[1641014938857,0.105531,47397.0,47394.0,0.55380961]
[1641014939056,0.00975392,47404.0,47395.0,0.62347086]
[1641014939255,0.00975392,47404.0,47400.0,0.23679302]
[1641014939859,0.052756,47403.0,47400.0,0.23679302]
[1641014940059,0.052756,47403.0,47402.0,0.41679469]
[1641014940456,0.052756,47403.0,47402.0,0.51679469]
[1641014941156,0.061366,47403.0,47402.0,0.53727486]
[1641014941360,0.06146468,47403.0,47402.0,0.53727486]
[1641014942015,0.27146468,47403.0,47402.0,0.53727486]
[1641014942218,0.27146468,47403.0,47402.0,0.55675609]
[1641014942419,0.27146468,47403.0,47402.0,0.53627592]
[1641014942817,0.27146468,47403.0,47402.0,0.39127592]
[1641014943218,0.27146468,47403.0,47402.0,0.41237619]
[1641014943421,0.27146468,47403.0,47402.0,0.39289496]
[1641014943619,0.27146468,47403.0,47402.0,0.02110027]
[1641014943819,0.60889368,47403.0,47402.0,0.02110027]
[1641014944218,0.60889368,47403.0,47402.0,0.04130958]
[1641014944420,0.60889368,47403.0,47402.0,0.02020931]
[1641014945461,0.60889368,47403.0,47400.0,0.45124396]
[1641014945662,0.30149616,47402.0,47397.0,0.32318427]
[1641014945862,0.00012781,47402.0,47397.0,0.32318427]
[1641014946265,0.052758,47401.0,47400.0,0.01998938]
[1641014946564,0.00012781,47402.0,47400.0,0.01998938]
[1641014947567,0.052756,47401.0,47397.0,0.34299666]
[1641014947964,9.129e-05,47400.0,47397.0,0.01981239]
[1641014948363,7.303e-05,47399.0,47397.0,0.03870249]
[1641014948564,7.303e-05,47399.0,47398.0,0.145]
[1641014948965,0.05283203,47399.0,47398.0,0.145]
[1641014950411,0.21870868,47403.0,47399.0,0.35520715]
[1641014950607,0.21870868,47403.0,47400.0,0.094952]
[1641014950808,0.21870868,47403.0,47401.0,0.1]
[1641014951115,0.21870868,47403.0,47402.0,0.337398]
[1641014951315,0.21870868,47403.0,47402.0,1.265]
[1641014951509,0.21878171,47403.0,47402.0,1.602429]
[1641014951707,0.21878171,47403.0,47402.0,0.482429]
[1641014951907,0.21878171,47403.0,47402.0,0.145]
[1641014952107,0.21878171,47403.0,47396.0,0.7602358]
[1641014952308,0.21878171,47403.0,47402.0,0.02150234]
[1641014953165,0.21378171,47403.0,47402.0,0.16650234]
[1641014954167,0.21378171,47403.0,47402.0,0.145]
[1641014954566,0.21378171,47403.0,47396.0,0.01815325]
[1641014954768,0.052759,47400.0,47396.0,0.01815325]
[1641014955567,0.052759,47400.0,47399.0,0.145]
[1641014955766,0.34766312,47400.0,47399.0,0.145]
[1641014956366,0.39766312,47400.0,47399.0,0.145]
[1641014956567,0.34766312,47400.0,47399.0,0.145]
[1641014961555,0.34766312,47400.0,47399.0,0.98]
[1641014961556,0.05250509,47400.0,47399.0,0.98]
[1641014961757,0.05250509,47400.0,47399.0,0.14]
[1641014962155,0.052757,47402.0,47399.0,0.13]
[1641014962353,0.052757,47402.0,47401.0,0.13]
[1641014962555,0.052757,47402.0,47401.0,0.56806102]
[1641014963354,0.052757,47402.0,47401.0,0.589818]
[1641014964302,0.052757,47402.0,47401.0,0.17116298]
[1641014965101,0.052757,47402.0,47401.0,0.13]
[1641014966005,0.052757,47402.0,47394.0,0.57391536]
[1641014966006,0.052762,47397.0,47394.0,0.57391536]
[1641014966403,0.052762,47397.0,47395.0,7.303e-05]
[1641014966902,0.29548916,47396.0,47395.0,7.303e-05]
[1641014967302,0.052768,47397.0,47395.0,0.13007303]
[1641014967502,0.052768,47397.0,47396.0,1.24]
[1641014967704,0.56716053,47400.0,47396.0,0.467429]
[1641014967971,0.56716053,47400.0,47399.0,0.13]
[1641014970977,0.56716053,47400.0,47399.0,0.125]
[1641014974312,0.56716053,47400.0,47399.0,0.9059912]
[1641014974511,0.56716053,47400.0,47399.0,0.8434202]
[1641014974712,0.56716053,47400.0,47399.0,0.125]
[1641014976266,0.56716053,47400.0,47396.0,0.02015035]
[1641014976464,0.56716053,47400.0,47396.0,0.03994811]
[1641014976465,0.337429,47399.0,47396.0,0.03994811]
[1641014976665,0.052765,47398.0,47396.0,0.01979776]
[1641014976862,0.337429,47397.0,47396.0,0.01979776]
[1641014977265,0.337429,47397.0,47396.0,0.14479776]
[1641014977766,0.337429,47397.0,47396.0,0.125]
[1641014977964,0.052765,47398.0,47396.0,0.54794307]
[1641014978165,0.052765,47398.0,47397.0,0.125]
[1641014978566,0.56716053,47400.0,47398.0,0.26154551]
[1641014978766,0.56716053,47400.0,47399.0,0.125]
[1641014980017,0.61991953,47400.0,47399.0,0.125]
[1641014981619,0.95734853,47400.0,47399.0,0.125]
[1641014982421,0.95734853,47400.0,47396.0,0.01856833]
[1641014982621,0.337429,47399.0,47395.0,7.303e-05]
[1641014982822,0.337429,47399.0,47398.0,0.125]
[1641014983061,0.33447578,47399.0,47398.0,0.125]
[1641014983261,0.67190478,47399.0,47398.0,0.125]
[1641014983866,0.72466678,47399.0,47398.0,0.125]
[1641014984666,0.390191,47399.0,47398.0,0.125]
[1641014985676,0.337429,47399.0,47398.0,0.125]
[1641014985866,0.56716053,47400.0,47398.0,0.125]
[1641014986064,0.56716053,47400.0,47395.0,7.303e-05]
[1641014986264,0.56690661,47400.0,47395.0,7.303e-05]
[1641014986468,0.56690661,47400.0,47399.0,0.125]
[1641014987119,0.56690661,47400.0,47399.0,0.565]
[1641014987319,0.56690661,47400.0,47399.0,0.125]
[1641014987618,0.56690661,47400.0,47399.0,0.4959348]
[1641014988620,0.56690661,47400.0,47399.0,0.51753239]
[1641014989023,0.56690661,47400.0,47399.0,0.79610187]
[1641014989420,0.56690661,47400.0,47399.0,0.51753239]
[1641014989622,0.56690661,47400.0,47399.0,0.51438341]
[1641014989921,0.56690661,47400.0,47399.0,0.01844861]
[1641014990121,0.90433561,47400.0,47399.0,0.14344861]
[1641014990558,0.90433561,47400.0,47399.0,0.16209178]